[Event "Tirnavia Reti Memorial-GM 2022"]
[Site "Trnava"]
[Date "2022.08.11"]
[Round "2.5"]
[White "Stevik, Patrik"]
[Black "Sahidi, Samir"]
[Result "0-1"]
[ECO "D78"]
[WhiteElo "2126"]
[BlackElo "2462"]
[Annotator "TA"]
[PlyCount "136"]
[EventDate "2022.08.10"]
[EventType "tourn"]
[EventCountry "SVK"]
[SourceTitle "playchess.com"]
[Source "ChessBase"]
[SourceQuality "1"]
[TimeControl "40/5400+30:1800+30"]

{[%evp 16,136,43,45,67,65,67,64,96,77,93,86,95,90,80,86,85,27,61,35,92,-22,0,-4,71,14,8,-57,-56,-37,-52,-54,-46,-60,-55,-63,-45,-64,0,-36,-25,-57,-38,-33,-35,-49,10,7,21,0,0,0,0,0,0,0,0,0,0,0,0,0,0,0,0,0,0,0,0,0,0,0,0,0,0,0,0,-14,0,0,0,0,0,0,54,0,0,0,0,0,0,0,0,0,0,-351,-351,-224,-224,-224,-224,-382,-324,-442,-396,-915,-898,-909,-876,-666,-267,-29964,-29965,-12837,-6070,-29981,-29981,-29986,-29987,-29989,-29988,-29987,-29988]} 1. d4 {[%emt 0:00:07]} Nf6 {[%emt 0:00:14]} 2. c4 {[%emt 0:00:36]} g6 {[%emt 0:00:46]} 3. Nf3 {[%emt 0:01:14]} Bg7 {[%emt 0:00:19]} 4. g3 {[%emt 0:00:11]} O-O {[%emt 0:01:05]} 5. Bg2 {[%emt 0:00:09]} d5 {[%emt 0:02:55]} 6. O-O {[%emt 0:00:43]} dxc4 {[%emt 0:02:16]} 7. Na3 {[%emt 0:04:55]} c6 {[%emt 0:05:54] Recently 7...c5 got a lot of attention.} 8. Nxc4 {[%emt 0:01:21]} Be6 {[%emt 0:01:39]} 9. b3 {[%emt 0:04:42]} Qc8 {[%emt 0:03:12] D78: Fianchetto Grünfeld: 6 0-0 c6.} 10. Ba3 {[%emt 0:01:50]} Re8 {[%emt 0:00:37]} 11. Re1 {[%emt 0:02:59] [#]} Bh3 $146 {[%emt 0:01:23] White is slightly better.} ({Predecessor:} 11... Bd5 12. Rc1 Nbd7 13. Qc2 Be4 14. Qb2 Qd8 15. Ncd2 Nb6 16. Nxe4 Nxe4 17. Qc2 Nd6 {1-0 (46) Marsalek,Z (2220)-Kosnar,M (2235) Czech Republic 1997}) 12. Bh1 {[%emt 0:01:24]} h6 {[%emt 0:01:40]} 13. e4 {[%emt 0:02:40]} Nbd7 {[%emt 0:00:53]} 14. Qc2 {[%emt 0:02:20]} Qc7 {[%emt 0:03:14]} 15. Rad1 {[%emt 0:04:09]} Rac8 {[%emt 0:02:03]} 16. Nh4 {[%emt 0:04:33]} ({Better is} 16. Qd2 $16) 16... Nf8 {[%emt 0:03:19]} 17. Qb1 {[%emt 0:02:56]} Ng4 {[%emt 0:04:12] [#]} (17... Red8 $14) 18. d5 {[%emt 0:10:26]} (18. e5 $1 $16) 18... cxd5 $11 {[%emt 0:08:16]} 19. exd5 {[%emt 0:00:43][%cal Oe1e7]} Qd7 {[%emt 0:04:55]} (19... b5 $11 {remains equal.} 20. Ne3 (20. d6 $2 exd6 21. Bxd6 Rxe1+ 22. Rxe1 Qd8 $19) 20... Bc3) 20. Ng2 {[%emt 0:10:49]} (20. Bb2 $16) 20... b5 $132 {[%emt 0:02:32][%mdl 2048] Black is fighting back} 21. Na5 {[%emt 0:03:47]} (21. Nd2 $11) 21... Bc3 $15 {[%emt 0:02:41][%csl LRa5,LRe1]} 22. Nc6 {[%emt 0:04:13][%cal Re1e7]} Bxe1 {[%emt 0:00:40]} 23. Rxe1 {[%emt 0:01:14][%cal Rc6e7]} e5 {[%emt 0:02:25]} (23... Qxd5 $2 24. Nf4 Qf5 25. Nxe7+ (25. Nxh3 Qh5 $14) 25... Rxe7 26. Bxe7 $18) 24. Ne3 {[%emt 0:09:06]} Nxe3 {[%emt 0:03:04]} 25. Rxe3 {[%emt 0:00:01]} Bf5 {[%emt 0:00:45]} 26. Qf1 {[%emt 0:01:16]} Qb7 {[%emt 0:01:45]} ({Black should try} 26... e4 $1 $15) 27. Nxe5 {[%emt 0:04:26]} Qa6 {[%emt 0:04:52]} 28. Bxf8 {[%emt 0:03:39]} Kxf8 {[%emt 0:04:10]} ({Much weaker is} 28... Rxf8 29. g4 f6 30. Nc6 Bxg4 31. Ne7+ Kf7 32. Nxc8 (32. Qb1 Bf5 $11) 32... Rxc8 33. Be4 $11) 29. Qa1 {[%emt 0:01:43][%cal Oe5d7]} f6 {[%emt 0:00:20]} 30. Nc6 {[%emt 0:01:22]} Kg7 {[%emt 0:00:07]} (30... Kf7 $1 $15) 31. Ne7 $11 {[%emt 0:03:36]} Rcd8 {[%emt 0:00:57]} 32. Nxf5+ {[%emt 0:03:46]} (32. Qe1 $5 {[%cal Re7f5]} Bd7 33. h4 $15 (33. Qb1 f5 $17)) 32... gxf5 {[%emt 0:00:09]} 33. Rxe8 {[%emt 0:01:08]} Rxe8 {[%emt 0:00:10][%mdl 4096] Endgame KQR-KQB} 34. Bf3 {[%emt 0:00:12]} Qd6 {[%emt 0:01:34]} 35. Qd4 {[%emt 0:03:13]} Re7 {[%emt 0:01:04]} 36. Qd3 {[%emt 0:01:04]} Qd7 {[%emt 0:00:52]} 37. Kg2 {[%emt 0:00:39]} b4 {[%emt 0:01:19]} 38. Qa6 {[%emt 0:02:04]} Kg6 {[%emt 0:05:43]} 39. Qc4 {[%emt 0:01:46]} a5 {[%emt 0:01:35]} 40. Qa6 {[%emt 0:01:09]} Qd8 {[%emt 0:01:11]} 41. Qc6 {[%emt 0:05:21]} h5 {[%emt 0:07:24]} 42. Qc4 {[%emt 0:01:43]} Rh7 {[%emt 0:04:04][%cal Oh5h4]} 43. h4 {[%emt 0:02:15]} Re7 {[%emt 0:01:33]} 44. Qf4 {[%emt 0:03:39]} Re5 {[%emt 0:02:00]} 45. Qd2 {[%emt 0:01:45]} Qd6 {[%emt 0:01:52]} 46. Qc2 {[%emt 0:04:49]} Kg7 {[%emt 0:02:37]} 47. Qc4 {[%emt 0:01:37]} Re7 {[%emt 0:01:20]} 48. Bxh5 {[%emt 0:03:01]} f4 $1 {[%emt 0:01:46]} 49. gxf4 {[%emt 0:01:35]} Kh6 {[%emt 0:03:05]} (49... f5 $11) 50. Bf3 {[%emt 0:02:08]} (50. Bg4 $1 $14) 50... Rg7+ {[%emt 0:00:13]} 51. Kh2 {[%emt 0:01:37]} Qb6 {[%emt 0:02:04]} 52. Qe2 {[%emt 0:01:17]} Qd4 {[%emt 0:00:17]} 53. Qe3 {[%emt 0:00:15]} Qxe3 {[%emt 0:01:10]} 54. fxe3 {[%emt 0:00:01] Hoping for e4. KR-KB} f5 {[%emt 0:04:24]} 55. Kh3 $2 {[%emt 0:03:32][%mdl 8192]} (55. e4 $11 {and White is okay.} fxe4 56. Bxe4) 55... Re7 $19 {[%emt 0:00:50]} 56. Kg3 {[%emt 0:01:20][%cal Oe3e4]} Rxe3 {[%emt 0:00:20]} 57. Kf2 {[%emt 0:00:01]} Rc3 {[%emt 0:01:19][%mdl 1024] Black has strong compensation.} 58. Ke2 $2 {[%emt 0:00:26]} (58. h5) 58... Kg7 {[%emt 0:00:44] Strongly threatening ...Kf6.} 59. h5 {[%emt 0:00:55]} Kf6 {[%emt 0:01:12] ...Rc2+ is the strong threat.} 60. Kf2 $2 {[%emt 0:02:31]} (60. h6 Rc2+ 61. Ke3) 60... Rc2+ {[%emt 0:01:43]} 61. Ke3 {[%emt 0:00:28]} Rxa2 {[%emt 0:01:41] Threatens to win with ...a4.} 62. Be2 {[%emt 0:00:13]} Rc2 {[%emt 0:00:55]} (62... Ra3 $142 63. Bc4 a4) 63. Bc4 $2 {[%emt 0:01:10]} (63. h6 $19) 63... a4 {[%emt 0:02:05][%cal Ba5a4,Ba4a3,Ba3a2][%mdl 32]} 64. Bd3 {[%emt 0:00:15] [#]} a3 $1 {[%emt 0:00:11] ( -> ...Rc3)} 65. d6 {[%emt 0:00:35]} (65. Bxc2 a2) 65... Rc6 {[%emt 0:00:53] Black mates.} 66. h6 {[%emt 0:00:17]} a2 {[%emt 0:00:14]} 67. d7 {[%emt 0:00:17]} Rd6 {[%emt 0:00:05]} 68. h7 {[%emt 0:00:18]} Kg7 {[%emt 0:00:06] Weighted Error Value: White=0.39/Black=0.11 (very precise)} 0-1

[Event "Tirnavia Reti Memorial-GM 2022"]
[Site "Trnava"]
[Date "2022.08.12"]
[Round "3.1"]
[White "Sahidi, Samir"]
[Black "Malinovsky, Karel"]
[Result "0-1"]
[ECO "D37"]
[WhiteElo "2462"]
[BlackElo "2463"]
[Annotator "TA"]
[PlyCount "152"]
[EventDate "2022.08.10"]
[EventType "tourn"]
[EventCountry "SVK"]
[SourceTitle "playchess.com"]
[Source "ChessBase"]
[SourceQuality "1"]
[TimeControl "40/5400+30:1800+30"]

{[%evp 13,152,13,16,9,19,11,13,13,9,0,0,0,0,0,0,0,0,0,0,0,0,0,0,0,0,0,0,0,0,0,0,0,0,0,0,0,0,0,0,0,0,0,0,0,0,0,0,0,0,0,0,0,0,0,0,0,0,0,0,6,17,8,17,18,22,0,7,7,7,7,7,7,7,7,7,7,8,0,0,0,0,0,0,0,0,0,0,0,0,0,0,0,0,0,0,0,0,0,0,0,0,0,0,0,0,0,0,0,0,0,0,0,0,0,0,0,0,0,0,-29978,-29980,-29980,-29981,-29980,-29982,-29982,-29983,-29984,-29985,-29985,-29986,-29986,-29987,-29987,-29988,-29988,-29989,-29989,-29990,-29990,-29991]} 1. d4 {[%emt 0:00:11]} d5 {[%emt 0:00:06]} 2. c4 {[%emt 0:00:14]} e6 {[%emt 0:00:07]} 3. Nc3 {[%emt 0:00:35]} Be7 {[%emt 0:00:24]} 4. Bf4 {[%emt 0:02:01]} Nf6 {[%emt 0:00:56]} 5. e3 {[%emt 0:00:48]} O-O {[%emt 0:01:07]} 6. Nf3 {[%emt 0:01:46]} b6 {[%emt 0:00:54]} 7. cxd5 {[%emt 0:03:38]} Nxd5 {[%emt 0:01:09]} 8. Nxd5 {[%emt 0:01:39] D37: Queen's Gambit Declined: 5 Bf4.} Qxd5 {[%emt 0:01:15]} 9. Bxc7 {[%emt 0:03:44]} Bb4+ {[%emt 0:01:42]} 10. Nd2 {[%emt 0:00:08] The position is equal.} Nc6 {[%emt 0:01:03][%cal Bb8c6,Bc6a5,Ba5b3][%mdl 32]} 11. a3 {[%emt 0:07:08]} Bxd2+ {[%emt 0:02:19]} 12. Qxd2 {[%emt 0:00:21]} Na5 {[%emt 0:01:52] [#]} 13. Qc3 $146 {[%emt 0:10:24]} ({Predecessor:} 13. Rd1 Bb7 14. Bg3 Rfc8 15. f3 Qb3 16. Bd3 Nc4 17. Bxc4 Rxc4 18. O-O Rc2 19. Qb4 Qxb4 20. axb4 Rxb2 {1-0 (25) Sarana,A (2649)-Bocharov,D (2517) Sochi 2021}) 13... Bb7 {[%emt 0:09:30]} 14. b4 $1 {[%emt 0:02:24]} Nb3 {[%emt 0:09:38]} 15. Rb1 {[%emt 0:03:22]} Rac8 {[%emt 0:05:05][%cal Ob3d4]} 16. Qxb3 {[%emt 0:12:03]} ({But not} 16. Rxb3 Qd7 17. Qb2 Rxc7 $15) (16. f3 {is more complex.} Qd8 17. Bxd8 Rxc3 18. Bg5) 16... Qxb3 {[%emt 0:02:31]} 17. Rxb3 {[%emt 0:00:15]} Rxc7 {[%emt 0:00:06]} 18. Kd2 {[%emt 0:01:29] Inhibits Rc1.} Rfc8 {[%emt 0:01:05] And now ...Rc2+ would win.} 19. Bd3 {[%emt 0:00:08] Against Rc2+} Bxg2 {[%emt 0:00:49]} 20. Rg1 {[%emt 0:02:59]} Bb7 {[%emt 0:01:37]} 21. a4 {[%emt 0:01:44]} Kf8 {[%emt 0:06:46]} 22. a5 {[%emt 0:02:01]} g6 {[%emt 0:05:38]} 23. Ra1 {[%emt 0:05:51]} Ke7 {[%emt 0:04:33]} 24. axb6 {[%emt 0:03:18]} axb6 {[%emt 0:00:07]} 25. Ra7 {[%emt 0:03:20]} Kd6 {[%emt 0:06:08]} 26. e4 {[%emt 0:04:15]} e5 {[%emt 0:14:50]} 27. d5 {[%emt 0:04:06]} f5 {[%emt 0:01:04]} 28. f3 {[%emt 0:01:43]} fxe4 {[%emt 0:00:30]} 29. fxe4 {[%emt 0:00:22]} Rf8 {[%emt 0:00:24]} 30. Ke3 {[%emt 0:01:50] Prevents Rf2.} Bxd5 {[%emt 0:07:19]} 31. Rxc7 {[%emt 0:00:42]} Bxb3 {[%emt 0:00:06]} 32. Rxh7 $11 {[%emt 0:00:50][%mdl 4096] Endgame KRB-KRB} Be6 {[%emt 0:04:23]} 33. Bb5 {[%emt 0:02:59]} Rf7 {[%emt 0:07:46]} 34. Rh6 {[%emt 0:01:08]} Ke7 {[%emt 0:01:01]} 35. Bc6 {[%emt 0:01:58]} Rg7 {[%emt 0:01:47]} 36. Bd5 {[%emt 0:01:05]} Bd7 {[%emt 0:00:50]} 37. Rh8 {[%emt 0:01:31]} g5 {[%emt 0:01:21]} 38. Rh6 {[%emt 0:00:32]} b5 {[%emt 0:00:28]} 39. Bc6 {[%emt 0:03:41]} g4 {[%emt 0:01:00]} 40. Bxd7 {[%emt 0:03:09]} Kxd7 {[%emt 0:00:06] KR-KR} 41. Rb6 {[%emt 0:30:21] Threatening mate with Rb7+.} Rf7 {[%emt 0:08:15]} 42. Rxb5 {[%emt 0:00:00] Intending Rb7+ and mate.} Rf3+ {[%emt 0:00:47]} 43. Ke2 {[%emt 0:00:00]} Ke6 {[%emt 0:00:45]} 44. Rb6+ {[%emt 0:00:00]} Kf7 {[%emt 0:02:05]} 45. Rb7+ {[%emt 0:00:00]} Kf6 {[%emt 0:05:08]} 46. Rb8 {[%emt 0:00:00] White threatens Rf8+ and mate.} Rb3 {[%emt 0:06:30]} 47. Kd2 {[%emt 0:00:16]} Kg5 {[%emt 0:00:46]} 48. b5 {[%emt 0:03:49]} Kf4 {[%emt 0:01:53]} 49. b6 {[%emt 0:04:15]} Kxe4 {[%emt 0:00:55]} 50. b7 {[%emt 0:02:14]} Rd3+ {[%emt 0:02:21]} 51. Ke2 {[%emt 0:00:37] Re8 would kill now.} Rd7 {[%emt 0:00:06]} (51... Rb3 52. Kf2) 52. Kf2 {[%emt 0:01:23]} Rf7+ {[%emt 0:00:50]} 53. Kg3 {[%emt 0:00:38]} Rg7 {[%emt 0:00:30]} 54. Kh4 {[%emt 0:01:22]} Ke3 $1 {[%emt 0:01:52]} 55. Kg3 {[%emt 0:00:37]} e4 {[%emt 0:02:19]} 56. Kg2 {[%emt 0:00:05]} Rd7 {[%emt 0:00:29]} 57. Kg3 {[%emt 0:00:17]} Rg7 {[%emt 0:00:27]} 58. Kh4 {[%emt 0:00:51]} Ke2 {[%emt 0:00:36]} 59. Kh5 {[%emt 0:00:33]} e3 {[%emt 0:00:28]} 60. Kh6 {[%emt 0:00:36]} Rd7 {[%emt 0:00:09] Hoping for ...Kd2.} 61. Kg5 {[%emt 0:00:49]} Kd2 {[%emt 0:00:31] Strongly threatening ...e2.} 62. Kxg4 {[%emt 0:00:37]} e2 {[%emt 0:00:06]} 63. Re8 {[%emt 0:00:03]} Rxb7 {[%emt 0:00:09]} 64. Rd8+ {[%emt 0:00:43]} Ke3 {[%emt 0:00:44]} 65. Re8+ {[%emt 0:00:06]} Kf2 {[%emt 0:00:06] ( -> ...Rb4+)} 66. Rf8+ $2 {[%emt 0:00:24][%mdl 8192]} (66. h4 $11) 66... Kg2 {[%emt 0:00:19] Black mates.} 67. Re8 {[%emt 0:00:08]} Rb4+ {[%emt 0:00:51]} 68. Kg5 {[%emt 0:00:24]} Kf3 {[%emt 0:00:25]} 69. Rxe2 {[%emt 0:01:57]} Kxe2 {[%emt 0:00:06] KR-KP} 70. h4 {[%emt 0:00:03]} Kf3 $1 {[%emt 0:00:23]} 71. h5 {[%emt 0:00:06]} Rb5+ {[%emt 0:00:36]} 72. Kg6 {[%emt 0:00:04]} Kg4 {[%emt 0:00:00]} 73. h6 {[%emt 0:00:04]} Rb6+ {[%emt 0:00:00]} 74. Kg7 {[%emt 0:00:17]} Kg5 {[%emt 0:00:03]} 75. h7 {[%emt 0:00:09] [#]} Rb7+ $1 {[%emt 0:00:05]} 76. Kg8 {[%emt 0:00:08] [#]} Kg6 $1 {[%emt 0:00:15] Weighted Error Value: White=0.01 (flawless) /Black=0.01 (flawless)} 0-1

[Event "Tirnavia Reti Memorial-GM 2022"]
[Site "Trnava"]
[Date "2022.08.12"]
[Round "3.2"]
[White "Jablonicky, Martin"]
[Black "Stevik, Patrik"]
[Result "0-1"]
[ECO "B06"]
[WhiteElo "2343"]
[BlackElo "2126"]
[Annotator "TA"]
[PlyCount "62"]
[EventDate "2022.08.10"]
[EventType "tourn"]
[EventCountry "SVK"]
[SourceTitle "playchess.com"]
[Source "ChessBase"]
[SourceQuality "1"]
[TimeControl "40/5400+30:1800+30"]

{[%evp 18,62,31,18,29,0,0,-44,-70,-92,-78,-120,-112,-139,-161,-159,-155,-170,-139,-133,-114,-95,-106,-100,-67,-150,-107,-229,-225,-242,-231,-292,-291,-420,-275,-421,-337,-764,-741,-1020,-1006,-1528,-1465,-2330,-2333,-2135,-1689]} 1. e4 {[%emt 0:00:06]} g6 {[%emt 0:00:06]} 2. d4 {[%emt 0:00:05]} Bg7 {[%emt 0:00:04]} 3. Nc3 {[%emt 0:00:20]} d6 {[%emt 0:00:22]} 4. Be3 {[%emt 0:00:07]} a6 {[%emt 0:00:09]} 5. Qd2 {[%emt 0:00:17]} b5 {[%emt 0:00:16]} 6. f3 {[%emt 0:02:12]} Nd7 {[%emt 0:00:22]} 7. h4 {[%emt 0:00:08]} h5 {[%emt 0:00:14]} 8. Nh3 {[%emt 0:00:13]} Bb7 {[%emt 0:00:25]} 9. Ng5 {[%emt 0:00:07]} Ngf6 {[%emt 0:01:17]} 10. O-O-O {[%emt 0:11:17][%cal Oe4e5]} O-O {[%emt 0:02:41] B06: Modern Defence.} 11. a3 {[%emt 0:09:50][%cal Og2g4]} (11. g4 $5) 11... c5 {[%emt 0:03:17] [#]} 12. Rg1 $146 {[%emt 0:10:33]} ({Predecessor:} 12. Be2 Rc8 13. g4 b4 14. Nb1 cxd4 15. Bxd4 b3 16. c3 Qa5 17. gxh5 Nxh5 18. Bxg7 Kxg7 {0-1 (29) Dahl,T (2169)-Chatalbashev,B (2546) Ballerup 2017}) 12... Qc7 {[%emt 0:04:53] Black is slightly better.} 13. g4 {[%emt 0:02:33]} b4 {[%emt 0:06:16]} 14. Nb1 {[%emt 0:00:01]} hxg4 {[%emt 0:18:44] And now ...cxd4 would win.} 15. h5 {[%emt 0:00:22]} Nxh5 {[%emt 0:03:21]} 16. axb4 {[%emt 0:03:22]} cxd4 {[%emt 0:02:42]} 17. Bxd4 {[%emt 0:00:39]} Bxd4 {[%emt 0:02:59]} 18. Qxd4 {[%emt 0:00:01]} Rac8 {[%emt 0:00:30][%csl Gc8][%cal Rc7c2] Dancing on a razor blade.} 19. Nc3 {[%emt 0:01:03]} g3 {[%emt 0:02:01]} 20. Bh3 {[%emt 0:03:42] [#]} a5 $1 {[%emt 0:03:27] White must now prevent ...axb4.} 21. bxa5 {[%emt 0:16:37]} (21. b5 $1 $15) 21... Ra8 {[%emt 0:11:27]} 22. Bxd7 {[%emt 0:04:38] White does not recover from this.} (22. b4 $17) 22... Qxd7 $19 {[%emt 0:00:19]} 23. b4 {[%emt 0:00:46]} Rac8 {[%emt 0:01:42]} 24. Rh1 {[%emt 0:12:28]} e5 {[%emt 0:07:15]} (24... f6 25. Nh3 $17) 25. Qe3 {[%emt 0:01:50]} (25. Qd2 $142 Rc4 26. Rxh5 gxh5 27. Rg1) 25... Nf4 {[%emt 0:06:27][%cal Oc8c3] Hoping for ...Rxc3!} 26. Kb2 {[%emt 0:00:01]} (26. Nh7 $142 Qe7 27. Rd2 (27. Nxf8 $2 Rxc3 28. Nxg6 fxg6 $19)) 26... Rc4 {[%emt 0:00:27]} 27. Qb6 {[%emt 0:00:10]} (27. Nh7 Qc7 28. Nxf8 (28. Nf6+ $2 Kg7 $19) 28... Rxb4+ 29. Ka1 Qxa5+ 30. Na2) 27... Rc6 {[%emt 0:01:51] Black is clearly winning.} ({Inferior is} 27... Qc8 28. Qxd6 Rxc3 29. Nh7 (29. Qxe5 $2 Rxc2+ 30. Kb1 Rh2 $19) 29... Rxc2+ 30. Kb1 $11) 28. Qb5 {[%emt 0:00:35]} Qc7 {[%emt 0:02:27]} 29. Rxd6 {[%emt 0:05:46]} Qxd6 {[%emt 0:01:50]} 30. Qxb7 {[%emt 0:00:14] [#]} Rxc3 $1 {[%emt 0:01:11][%mdl 512]} 31. Kxc3 {[%emt 0:04:01]} g2 {[%emt 0:00:40] Weighted Error Value: White=1.08/Black=0.15 (very precise)} 0-1

[Event "Tirnavia Reti Memorial-GM 2022"]
[Site "Trnava"]
[Date "2022.08.12"]
[Round "3.3"]
[White "Velicka, Petr"]
[Black "Finek, Vaclav"]
[Result "1/2-1/2"]
[ECO "B38"]
[WhiteElo "2384"]
[BlackElo "2393"]
[Annotator "TA"]
[PlyCount "94"]
[EventDate "2022.08.10"]
[EventType "tourn"]
[EventCountry "SVK"]
[SourceTitle "playchess.com"]
[Source "ChessBase"]
[SourceQuality "1"]
[TimeControl "40/5400+30:1800+30"]

{[%evp 20,94,38,38,37,35,28,20,29,31,31,27,47,31,16,0,0,0,0,-33,-25,-39,-54,-49,0,-80,0,-33,-14,-101,-56,-73,-58,-89,-61,-52,-68,-103,-99,-102,-91,-104,-111,-110,-110,-154,-80,-77,-76,-76,-77,-77,-80,-74,-29,-67,0,0,0,0,0,0,0,0,0,0,0,0,0,0,0,0,0,0,0,0,0]} 1. e4 {[%emt 0:00:08]} c5 {[%emt 0:00:06]} 2. Nf3 {[%emt 0:00:06]} g6 {[%emt 0:00:19]} 3. c4 {[%emt 0:00:42]} Bg7 {[%emt 0:00:18]} 4. d4 {[%emt 0:00:08]} cxd4 {[%emt 0:00:04]} 5. Nxd4 {[%emt 0:00:08]} Nc6 {[%emt 0:00:04]} 6. Be3 {[%emt 0:00:16]} Nf6 {[%emt 0:00:08]} 7. Nc3 {[%emt 0:00:06]} d6 {[%emt 0:00:06]} 8. Be2 {[%emt 0:00:39]} O-O {[%emt 0:00:07]} 9. O-O {[%emt 0:00:19]} Bd7 {[%emt 0:00:17]} 10. Kh1 {[%emt 0:03:17]} Nxd4 {[%emt 0:06:46]} 11. Bxd4 {[%emt 0:00:25]} Bc6 {[%emt 0:00:05] B38: Sicilian: Maroczy Bind with 5...Bg7 and 7...0-0.} 12. Qd3 {[%emt 0:00:11]} a5 {[%emt 0:02:24]} 13. b3 {[%emt 0:02:25]} Nd7 {[%emt 0:04:26]} 14. Bxg7 {[%emt 0:00:15]} Kxg7 {[%emt 0:00:10]} 15. f4 {[%emt 0:00:16] [#]} (15. Qd2 {is more complex.} Nc5 16. f3 Qb6 17. Rab1) 15... f6 $146 {[%emt 0:09:24]} ({Predecessor:} 15... Qb6 16. Rab1 Qc5 17. Bg4 Nf6 18. Bh3 e5 19. Nd5 Bxd5 20. exd5 Rae8 21. Rbe1 exf4 {0-1 (32) Horvath,D (2417)-Gallego Alcaraz,A (2502) Caleta 2019}) 16. Rad1 {[%emt 0:03:56]} Qb6 {[%emt 0:05:59]} 17. Bg4 {[%emt 0:08:28]} Nc5 {[%emt 0:03:23]} 18. Qe3 {[%emt 0:00:22]} a4 {[%emt 0:12:40]} 19. Rb1 {[%emt 0:08:21]} axb3 {[%emt 0:03:00]} 20. axb3 {[%emt 0:00:34]} Ra3 {[%emt 0:10:18]} 21. Bd1 {[%emt 0:13:42] [#]} Qb4 {[%emt 0:06:08]} (21... Na4 $1 $15 {feels stronger.} 22. Qxb6 Nxb6) 22. Bc2 {[%emt 0:05:34]} (22. f5 $11 {keeps the balance.}) 22... e5 {[%emt 0:12:28]} (22... Nxb3 $17 23. Nd5 Bxd5 24. exd5 Qd2 25. Qxe7+ Rf7 26. Qxd6 Ra6 27. Qxa6 bxa6 28. Bxb3 Rb7) 23. fxe5 {[%emt 0:21:08]} dxe5 {[%emt 0:00:33][%cal Rc5b3]} 24. Ra1 {[%emt 0:00:39]} (24. Nd5 $11 Bxd5 25. cxd5) 24... Ne6 {[%emt 0:07:46] And now ...Nd4 would win.} (24... Nxb3 $2 25. Rxa3 Qxa3 26. Nb5 $18 (26. Nb1 Qb2 $16)) 25. Rxa3 {[%emt 0:05:23]} Qxa3 {[%emt 0:00:10]} 26. Nd5 {[%emt 0:00:44]} Nd4 {[%emt 0:01:39]} 27. Qc3 {[%emt 0:01:04]} Bxd5 {[%emt 0:01:50]} 28. exd5 {[%emt 0:05:51] [#]} Ra8 $1 {[%emt 0:02:30]} 29. Bd1 {[%emt 0:01:23]} b6 {[%emt 0:01:58][%cal Bb7b6,Bb6b5][%mdl 32]} 30. Qh3 {[%emt 0:00:53]} Qd6 {[%emt 0:00:41] Inhibits Qd7+.} 31. Qc3 {[%emt 0:04:48]} Ra7 {[%emt 0:02:31]} 32. b4 {[%emt 0:04:10]} Rc7 {[%emt 0:00:05]} ({Black should try} 32... b5 {Hoping for ...bxc4.} 33. Bb3 bxc4 34. Bxc4 Rc7) 33. Bf3 $17 {[%emt 0:01:16]} Nxf3 {[%emt 0:03:06]} 34. Rxf3 {[%emt 0:00:12][%mdl 4096] Endgame KQR-KQR} b5 {[%emt 0:00:20]} 35. c5 {[%emt 0:00:13]} Qxd5 {[%emt 0:00:05]} 36. Rd3 {[%emt 0:00:11] Inhibits Qd1+.} Qe4 {[%emt 0:01:09]} 37. h3 {[%emt 0:00:35]} h5 {[%emt 0:01:14]} ({Better is} 37... Qf5 $15) 38. Rd6 $11 {[%emt 0:04:16] The position is equal.} Ra7 {[%emt 0:02:22]} 39. Qd2 $1 {[%emt 0:04:32] Black must now prevent c6.} Ra1+ {[%emt 0:01:33]} 40. Kh2 {[%emt 0:00:07]} g5 {[%emt 0:01:20] ...Qb1 is the strong threat.} 41. Rxf6 $1 {[%emt 0:05:36][%mdl 64] Decoy} Kxf6 {[%emt 0:06:45]} 42. Qd8+ {[%emt 0:00:15]} Kf5 {[%emt 0:04:42]} 43. Qf8+ {[%emt 0:00:19]} Ke6 {[%emt 0:00:19]} 44. Qd6+ {[%emt 0:00:15]} Kf7 {[%emt 0:00:24]} 45. Qd7+ {[%emt 0:00:11]} Kf6 {[%emt 0:00:44]} 46. Qd8+ {[%emt 0:00:40]} Kf7 {[%emt 0:00:31] ( -> ...Qf4+)} 47. Qd7+ {[%emt 0:00:24]} Kf6 {[%emt 0:00:21] Weighted Error Value: White=0.14 (very precise) /Black=0.12 (very precise)} 1/2-1/2

[Event "Tirnavia Reti Memorial-GM 2022"]
[Site "Trnava"]
[Date "2022.08.12"]
[Round "3.4"]
[White "Czebe, Attila"]
[Black "Pacher, Milan"]
[Result "1/2-1/2"]
[WhiteElo "2385"]
[BlackElo "2399"]
[Annotator "TA"]
[PlyCount "38"]
[EventDate "2022.08.10"]
[EventType "tourn"]
[EventCountry "SVK"]
[SourceTitle "playchess.com"]
[Source "ChessBase"]
[SourceQuality "1"]
[TimeControl "40/5400+30:1800+30"]

{[%evp 18,19,23,30]} 1. Nf3 {[%emt 0:06:58]} d5 {[%emt 0:00:01]} 2. g3 {[%emt 0:00:05]} c6 {[%emt 0:00:02]} 3. Bg2 {[%emt 0:00:02]} Bg4 {[%emt 0:00:02]} 4. O-O {[%emt 0:00:04]} Nd7 {[%emt 0:00:02]} 5. d3 {[%emt 0:00:02]} e5 {[%emt 0:00:04]} 6. Nbd2 {[%emt 0:00:03]} Ngf6 {[%emt 0:00:03]} 7. e4 {[%emt 0:00:03]} dxe4 {[%emt 0:00:03]} 8. dxe4 {[%emt 0:00:02]} Bc5 {[%emt 0:00:05]} 9. h3 {[%emt 0:00:04]} Bh5 {[%emt 0:00:03]} 10. Qe1 {[%emt 0:00:06] [#]} {Predecessor:} O-O $146 {A07: Réti Opening: New York and Capablanca Systems.} 11. a4 Qc7 12. Nc4 Rfe8 13. b4 Bf8 14. Bb2 b5 15. axb5 cxb5 16. Ne3 Bg6 17. Ra5 a6 18. Qa1 Bxe4 19. Rxa6 Bxb4 {0-1 (28) Navara,D (2719)-Giri,A (2764) chess24.com INT 2020} 1/2-1/2